Cogmind - Beta 17.1 @@@ ROGUE MODE // 2026.09.05 @ 04:07:25 Player: mischief_2000 Result: Destroyed by C-17 Slicer with Blade Saw Performance ------------- Evolutions (3) 1500 Regions Visited (9) 1800 Robots Destroyed (193) 965 Value Destroyed (5504) 5504 Prototype IDs (11) 220 Alien Tech Used (0) 0 Bonus (1278) 1278 TOTAL SCORE: 11267 Bonus ------- High Alert Combat Kills 578 Entered Garrisons 200 Entered DSFs 500 Cogmind --------- Core Integrity 0/700 Matter 3/300 Energy 85/100 System Corruption 5% Temperature Cool (0) Movement Core (50) Location -7/DSF Parts ------- > --- POWER (1) -------- (None) > --- PROPULSION (4) --- (None) > --- UTILITY (5) ------ (None) > --- WEAPON (3) ------- (None) > --- INVENTORY (5) ---- Large Storage Unit Advanced Actuator Array Mini Grenade Launcher Stasis Trap (100%) Peak State ------------ > --- POWER ------------ Light Nuclear Core > --- PROPULSION ------- Armored Huge Wheel Improved Cesium-ion Thruster Improved Cesium-ion Thruster > --- UTILITY ---------- High-capacity Storage Unit Enhanced Optical Array Heavy Armor Plating Hacking Suite > --- WEAPON ----------- Gauss Rifle Gauss Rifle Gauss Rifle > --- INVENTORY -------- Angular Momentum Engine Improved Cesium-ion Thruster Cooled VTOL Module Power Amplifier Cooling System Medium Storage Unit High-capacity Matter Pod Enhanced Optical Array Kinecellerator Authchip [Processor] Authchip [Armor] Authchip [Weapon] Plasma Cannon Plasma Cannon Plasma Cannon Plasma Cannon Advanced Assault Cannon Mini Grenade Launcher [Rating: 54] Favorites ----------- Power Cooled Ion Engine Engine Cooled Ion Engine Power Core Light Nuclear Core Propulsion Light Treads Treads Light Treads Leg Aluminum Leg Wheel Armored Huge Wheel Hover Unit Combat Airjet Flight Unit Improved Cesium-ion Thruster Utility High-capacity Storage Unit Device Cooling System Storage High-capacity Storage Unit Processor Enhanced Optical Array Hackware Hacking Suite Protection Heavy Armor Plating Weapon Heavy Particle Gun Energy Gun Heavy Particle Gun Energy Cannon Plasma Cannon Ballistic Gun Assault Rifle Ballistic Cannon Advanced Assault Cannon Launcher Mini Grenade Launcher Build | -11 -10 -9 -8 -8 -8 -7 -7 -7 -7 ------- Run | Yrd Mat Mat Mat Sto Gar Fac Was Fac DSF Slots Evolved 6 | . . 2 2 . . 2 . . . Power . | . . . . . . . . . . Propulsion 2 | . . 1 . . . 1 . . . Utility 3 | . . . 2 . . 1 . . . Weapon 1 | . . 1 . . . . . . . Parts Attached 110 | 7 21 25 7 12 17 17 1 . 3 Power 12 | 1 4 2 . 3 1 1 . . . Engine 7 | 1 3 2 . 1 . . . . . Core 5 | . 1 . . 2 1 1 . . . Reactor . | . . . . . . . . . . Propulsion 40 | 2 7 10 3 5 7 6 . . . Treads 24 | 2 3 9 3 4 3 . . . . Leg 4 | . 3 1 . . . . . . . Wheel 3 | . 1 . . . 1 1 . . . Hover 3 | . . . . . 3 . . . . Flight 6 | . . . . 1 . 5 . . . Utility 22 | 2 2 4 1 1 7 5 . . . Device 10 | 1 1 4 . . 3 1 . . . Storage 3 | 1 1 . . . . 1 . . . Processor 2 | . . . . . 1 1 . . . Hackware 1 | . . . . . . 1 . . . Protection 6 | . . . 1 1 3 1 . . . Artifact . | . . . . . . . . . . Weapon 36 | 2 8 9 3 3 2 5 1 . 3 Energy Gun 14 | 2 2 6 . 3 . . 1 . . Energy Cannon 4 | . . . 3 . . 1 . . . Ballistic Gun 12 | . 6 3 . . 2 1 . . . Ballistic Cannon 2 | . . . . . . 2 . . . Launcher 4 | . . . . . . 1 . . 3 Special Weapon . | . . . . . . . . . . Impact Weapon . | . . . . . . . . . . Slashing Weapon . | . . . . . . . . . . Piercing Weapon . | . . . . . . . . . . Special Melee Weapon . | . . . . . . . . . . Unidentified Prototypes 6 | . . 3 . 1 . 1 1 . . Parts Lost 28 | . 10 2 . 3 6 3 3 . 1 Power 6 | . 3 . . 2 . 1 . . . Propulsion 12 | . 3 1 . . 4 1 3 . . Utility 7 | . 1 1 . 1 2 1 . . 1 Weapon 3 | . 3 . . . . . . . . Highest Loss Streak 6 | . 6 2 . 2 2 2 3 . 1 To Critical Strikes . | . . . . . . . . . . Average Backups 16 | 6 16 19 18 16 16 12 7 5 3 Power . | . . . . . . . 1 1 . Propulsion 3 | 3 3 4 3 2 2 1 1 . . Utility 9 | . 8 11 11 10 8 7 4 2 2 Weapon 3 | 1 3 2 3 4 5 3 1 2 1 Tool/Special . | . . . . . . . . . . Unused Backups 59 | . 8 18 10 4 3 7 6 . 3 Power 4 | . . 1 . . 1 1 . . 1 Propulsion 17 | . 2 7 4 . 2 1 1 . . Utility 32 | . 6 8 5 2 . 4 5 . 2 Weapon 6 | . . 2 1 2 . 1 . . . Tool/Special . | . . . . . . . . . . Average Slot Usage (%) 93 | . 97 99 89 88 91 80 65 15 12 Engine 6 | . 10 11 9 4 . . . . . Core 3 | . 1 . . 4 9 6 5 . . Treads 21 | . 24 30 27 26 10 . . . . Wheel 1 | . . 1 . . . 5 . . . Hover 2 | . . . . . 12 . . . . Flight 1 | . . . . . . 17 25 . . Device 10 | . 13 10 9 9 11 4 2 . . Storage 10 | . 14 11 9 9 9 7 5 . . Processor 1 | . . . . . 2 9 13 7 6 Protection 3 | . . . 8 8 8 2 . . . Energy Gun 14 | . 6 24 2 14 17 . 3 . . Energy Cannon 2 | . . . 18 11 . . . . . Ballistic Gun 10 | . 21 8 5 . 9 10 . . . Peak Build Rating 54 | 8 13 22 32 36 47 54 45 8 8 Average Rating 24 | 5 9 19 29 31 38 45 32 8 5 On Entrance 20 | . 8 10 20 32 33 44 39 8 8 Avg Prop Armor Cover (%) 9 | . 12 14 . . 2 3 . . . Naked Turns 16 | . . . . . . . . . 16 Heaviest Build 86 | 14 51 59 86 86 75 73 22 . . Greatest Support 60 | 40 40 60 60 60 60 56 23 3 3 Greatest Overweight (x) 5 | . 3 3 1 2 5 5 . . . Average Overweight (x) . | . . . . . 1 . . . . Largest Inventory Capacity 20 | 8 20 20 20 20 20 20 10 5 5 Average Capacity 18 | 7 17 20 20 20 20 14 8 5 5 Most Carried 20 | 8 20 20 20 20 20 19 10 5 5 Average Carried 17 | 6 16 19 19 19 18 12 8 5 3 Final Capacity 20 | 8 20 20 20 20 20 10 5 5 5 Final Carried 20 | 8 18 20 20 20 19 10 5 5 4 Class Distribution -------------------- 27% | Scavenger-Gunner 16% | Scavenger-Mutant 16% | Scavenger-Tank 15% | Tank 9% | Mutant 8% | Gunner 4% | Sprinter Dominant Class ---------------- Scavenger-Mutant | -10/Materials Scavenger-Gunner | -9/Materials Tank | -8/Materials Scavenger-Tank | -8/Storage Scavenger-Tank | -8/Garrison Sprinter | -7/Factory Sprinter | -7/Waste Sprinter | -7/Factory Sprinter | -7/DSF Resources | -11 -10 -9 -8 -8 -8 -7 -7 -7 -7 ----------- Run | Yrd Mat Mat Mat Sto Gar Fac Was Fac DSF Matter Collected 3408 | 270 1019 817 271 143 664 224 . . . Remotely . | . . . . . . . . . . Salvage Created 8262 | 300 1093 2639 439 1278 1868 645 . . . Parts 427 | 28 69 123 30 63 79 35 . . . Haulers Intercepted 14 | . 2 6 2 3 . 1 . . . Recyclers Shooed 7 | . 1 2 . 2 . 2 . . . Parts Field Recycled . | . . . . . . . . . . Retrieved Matter . | . . . . . . . . . . Parts Self-Destructed . | . . . . . . . . . . Prevented . | . . . . . . . . . . Parts Restored . | . . . . . . . . . . Kills | -11 -10 -9 -8 -8 -8 -7 -7 -7 -7 ------- Run | Yrd Mat Mat Mat Sto Gar Fac Was Fac DSF Combat Hostiles Destroyed 113 | . 17 32 8 15 30 11 . . . Guns 102 | . 17 31 8 11 30 5 . . . Cannons 5 | . . . . 4 . 1 . . . AOE 5 | . . . . . . 5 . . . Classes Destroyed 15 | 3 6 1 . 1 3 1 . . . Worker 12 | 2 . 6 1 1 . 2 . . . Builder 6 | . 1 2 1 2 . . . . . Tunneler 10 | 9 1 . . . . . . . . Hauler 14 | . 2 6 2 3 . 1 . . . Recycler 20 | 1 3 10 . 4 . 2 . . . Operator 4 | . 1 1 1 1 . . . . . Watcher 11 | . 3 5 . 2 . 1 . . . Swarmer 23 | . 3 3 3 3 8 3 . . . Grunt 59 | . 14 19 3 7 8 8 . . . Brawler 2 | . . . . . 2 . . . . Duelist 5 | . . . . . 4 1 . . . Sentry 20 | . . 10 2 4 4 . . . . Specialist 1 | . . . . . 1 . . . . Hunter 5 | . . . . 1 3 1 . . . Programmer 1 | . . . . . . 1 . . . Best Kill Streak 7 | 4 6 7 4 5 6 6 . . . Combat Bots Only 6 | . 6 5 4 3 6 6 . . . Max Kills in Single Turn 7 | 1 1 2 1 2 2 7 . . . Gunslinging 1 | . . 1 . 1 1 . . . . Exploded 4 | . . . . . . 4 . . . Melee . | . . . . . . . . . . Uniques/NPCs Destroyed . | . . . . . . . . . . Combat | -11 -10 -9 -8 -8 -8 -7 -7 -7 -7 -------- Run | Yrd Mat Mat Mat Sto Gar Fac Was Fac DSF Hostile Shots Fired 655 | . 201 109 28 75 135 67 3 . 37 Missed 174 | . 49 36 9 13 35 24 . . 8 Hits 481 | . 152 73 19 62 100 43 3 . 29 Melee 49 | . . . . . 23 . 3 . 23 Projectile 432 | . 152 73 19 62 77 43 . . 6 Critical Strikes 25 | . 2 2 1 2 8 2 2 . 6 Damage Taken 7210 | . 1717 961 261 870 1934 782 118 . 567 Core 1330 | . 225 136 16 46 192 105 73 . 537 Absorbed by Shields 43 | . . . . . . . . . 43 Regen/Repaired (Parts) 179 | . . 117 . 62 . . . . . Core Remaining (%) 57 | 100 10 66 . . 53 . . . . Volleys Fired 503 | 28 108 133 31 51 109 42 . . 1 Largest 3 | 2 2 3 3 3 3 3 . . 1 Hottest 240 | 90 90 177 240 240 165 86 . . . Shots Fired 1277 | 56 204 382 93 141 326 74 . . 1 Gun 1169 | 56 204 382 75 79 326 47 . . . Cannon 104 | . . . 18 62 . 24 . . . Launcher 4 | . . . . . . 3 . . 1 Special . | . . . . . . . . . . Kinetic 450 | . 111 97 50 . 124 68 . . . Thermal 820 | 56 90 285 43 141 202 3 . . . Explosive 4 | . . . . . . 3 . . 1 Electromagnetic 3 | . 3 . . . . . . . . Robot Hit Streak 23 | 11 9 11 13 13 23 9 . . . Robot Miss Streak 7 | 2 6 5 5 3 6 7 . . 1 Penetration Max 1 | . . . . . 1 1 . . . Secondary Targets 24 | . 4 4 1 3 11 1 . . . Max Gunslinging Chain 1 | . 1 1 1 1 1 1 . . . Shots Hit Robots 705 | 35 109 213 53 79 189 27 . . . Core Hits 320 | 13 49 84 21 36 83 29 . . 5 Critical Kills 3 | . . . 1 . 2 . . . . Critical Parts Destroyed 3 | . . 1 . . 1 1 . . . Critical Strikes 44 | 2 1 22 2 4 11 2 . . . Burn 36 | 2 1 21 1 4 7 . . . . Meltdown 1 | . . . 1 . . . . . . Destroy 6 | . . 1 . . 4 1 . . . Blast 1 | . . . . . . 1 . . . Melee Attacks . | . . . . . . . . . . Impact . | . . . . . . . . . . Slashing . | . . . . . . . . . . Piercing . | . . . . . . . . . . Sneak Attacks . | . . . . . . . . . . Combat Hostiles . | . . . . . . . . . . Follow-up Attacks . | . . . . . . . . . . Damage Inflicted 13582 | 423 1430 3337 879 1800 3743 1841 . . 129 Guns 11011 | 423 1428 3337 656 911 3743 513 . . . Cannons 1351 | . . . 223 889 . 219 . . 20 Explosions 1206 | . . . . . . 1109 . . 97 Melee . | . . . . . . . . . . Ramming 14 | . 2 . . . . . . . 12 Kinetic 4052 | . 781 723 436 . 1380 732 . . . Thermal 8412 | 423 605 2614 443 1800 2363 164 . . . Explosive 1042 | . . . . . . 945 . . 97 Electromagnetic 42 | . 42 . . . . . . . . Impact 20 | . . . . . . . . . 20 Slashing . | . . . . . . . . . . Piercing . | . . . . . . . . . . Highest Corruption 5 | . 3 . . . . 5 5 5 5 Average Corruption 2 | . 1 . . . . 3 5 5 5 Corruption Purged . | . . . . . . . . . . Corruption Blocked . | . . . . . . . . . . Effects 21 | . 8 . . . . 12 . . 1 Message Errors 8 | . 2 . . . . 5 . . 1 Matter Fused 5 | . 2 . . . . 3 . . . Heat Flow Errors 1 | . 1 . . . . . . . . Energy Discharges 1 | . . . . . . 1 . . . Parts Rejected 3 | . 2 . . . . 1 . . . Data Loss (minor) 1 | . 1 . . . . . . . . Data Loss (major) 1 | . . . . . . 1 . . . Alerts 1 | . . . . . . 1 . . . Overload Shots . | . . . . . . . . . . Overflow Damage 212 | . . . 2 43 5 162 . . . Projectiles 45 | . . . 2 43 . . . . . Explosions 167 | . . . . . 5 162 . . . Melee . | . . . . . . . . . . Knockbacks 2 | . 1 . . . . 1 . . . Impact 1 | . 1 . . . . . . . . Kinetic 1 | . . . . . . 1 . . . Secondary . | . . . . . . . . . . Self-Inflicted Damage 258 | . . . . . 91 135 . . 32 Shots 5 | . . . . . 1 3 . . 1 Rammed 8 | . 1 . . . . . . . 7 Targets Rammed 8 | . 1 . . . . . . . 7 Kicked . | . . . . . . . . . . Crushed . | . . . . . . . . . . Highest Temperature 490 | 180 490 330 216 334 293 129 . . . Average Temperature 96 | 65 138 95 94 121 68 40 . . . Received Heat Transfer 2352 | . 864 441 126 360 279 255 . . 27 Effects 6 | . 2 3 . 1 . . . . . Shutdowns 2 | . 2 . . . . . . . . Energy Bleed 2 | . . 1 . 1 . . . . . Interference 2 | . . 2 . . . . . . . Siege Activations . | . . . . . . . . . . Martial Activations . | . . . . . . . . . . Shielding Activations . | . . . . . . . . . . Robots Disrupted . | . . . . . . . . . . Combat Hostiles . | . . . . . . . . . . Robots Corrupted . | . . . . . . . . . . Combat Hostiles . | . . . . . . . . . . Parts Fried . | . . . . . . . . . . Impact Corruptions . | . . . . . . . . . . Robots Melted 2 | . . 1 1 . . . . . . Combat Hostiles 1 | . . 1 . . . . . . . Parts Melted 48 | 5 1 16 2 8 16 . . . . Heat Transferred 20465 | 1276 1719 7696 1079 3785 4810 100 . . . Parts Sabotaged . | . . . . . . . . . . Parts Stolen . | . . . . . . . . . . Parts Stripped . | . . . . . . . . . . Power Chain Reactions . | . . . . . . . . . . Alert | -11 -10 -9 -8 -8 -8 -7 -7 -7 -7 ------- Run | Yrd Mat Mat Mat Sto Gar Fac Was Fac DSF Maximum Alert Level 4 | . . 2 1 1 4 3 1 . . Low Security (%) 46 | 100 100 41 17 67 4 . . 100 100 Level 1 29 | . . 53 82 32 20 . 100 . . Level 2 13 | . . 5 . . 39 57 . . . Level 3 7 | . . . . . 19 42 . . . Level 4 2 | . . . . . 14 . . . . Level 5 . | . . . . . . . . . . High Security . | . . . . . . . . . . Max Security . | . . . . . . . . . . Peak Influence 1174 | 20 132 450 321 272 1174 956 257 144 130 Initial 616 | . . 51 189 72 172 616 242 144 100 Average 286 | 2 19 224 243 144 642 701 237 144 108 Influence Increases 4220 | 60 488 1085 278 525 1062 677 15 . 30 Destroy 0b10 Robot/C 2260 | . 340 640 160 300 600 220 . . . Destroy 0b10 Robot/NC 435 | 60 55 150 25 65 45 35 . . . Destroy Leader 492 | . 80 202 44 80 30 56 . . . Allied During Kill 1 | . . . . . . 1 . . . Trap Triggered on 0b10 30 | . . . . . . . . . 30 Successful Hack 82 | . 11 26 24 4 . 17 . . . Select Force Hacks 30 | . . 30 . . . . . . . Disable Machine 210 | . . 30 . 45 15 120 . . . Anti-Garrison Action 250 | . . . . . 250 . . . . Destroy Structure 160 | . 2 7 10 16 77 48 . . . Partial Spotted 30 | . . . . . . 15 15 . . Lose Combat Pursuer 240 | . . . 15 15 45 165 . . . Influence Decreases 4100 | 60 365 758 555 433 153 1158 501 63 54 Entered New Map 1643 | . . 72 261 101 93 558 451 63 44 Time Decay 1877 | 60 265 666 294 302 . 270 20 . . Lost Part 280 | . 100 20 . 30 60 30 30 . 10 Purge Threat 300 | . . . . . . 300 . . . Squads Dispatched 15 | . 3 3 1 1 . 5 . . 2 Investigation 4 | . 1 2 . 1 . . . . . Extermination 2 | . . . . . . 2 . . . Reinforcement 8 | . 2 1 1 . . 2 . . 2 Assault . | . . . . . . . . . . Garrison 1 | . . . . . . 1 . . . Intercept . | . . . . . . . . . . Searches Triggered . | . . . . . . . . . . Construction Impeded 1 | . . . . . . 1 . . . Haulers Reinforced 1 | . . . . . . 1 . . . Active Scanning Responses . | . . . . . . . . . . Cargo Convoy Interrupts . | . . . . . . . . . . Stealth | -11 -10 -9 -8 -8 -8 -7 -7 -7 -7 --------- Run | Yrd Mat Mat Mat Sto Gar Fac Was Fac DSF Distress Signals 7 | . 3 1 1 . . 2 . . . Communications Jammed . | . . . . . . . . . . Distress Signals . | . . . . . . . . . . Times Spotted 174 | . 30 41 13 18 30 29 6 . 7 Peak Tracking Total 9 | . 7 3 5 4 7 9 6 . 6 Tactical Retreats 8 | . . . 1 1 2 4 . . . Traps | -11 -10 -9 -8 -8 -8 -7 -7 -7 -7 ------- Run | Yrd Mat Mat Mat Sto Gar Fac Was Fac DSF Traps Triggered 17 | . 3 . . 3 9 2 . . . Indirectly . | . . . . . . . . . . Trap Hack Attempts . | . . . . . . . . . . Triggered . | . . . . . . . . . . Disarmed . | . . . . . . . . . . Reprogrammed . | . . . . . . . . . . Reused 3 | . . . . . . . . . 3 Traps Extracted . | . . . . . . . . . . Installed 10 | . . . . . . . . . 10 Triggered 3 | . . . . . . . . . 3 Most Traps Carried 2 | . . . . . . . . . 2 Machines | -11 -10 -9 -8 -8 -8 -7 -7 -7 -7 ---------- Run | Yrd Mat Mat Mat Sto Gar Fac Was Fac DSF Machines Disabled 18 | . . 2 . 3 5 8 . . . Max in Single Turn 4 | . . 1 . 1 1 4 . . . Garrison Relay 2 | . . . . . 2 . . . . Phase Generator 1 | . . . . . 1 . . . . Machines Repaired . | . . . . . . . . . . Machines Dismantled . | . . . . . . . . . . Machines Sabotaged . | . . . . . . . . . . Overloaded Fab Kills . | . . . . . . . . . . Hacking | -11 -10 -9 -8 -8 -8 -7 -7 -7 -7 --------- Run | Yrd Mat Mat Mat Sto Gar Fac Was Fac DSF Machines Accessed 34 | . 5 11 1 6 3 7 . 1 . Terminals 22 | . 4 6 . 3 3 5 . 1 . Fabricators . | . . . . . . . . . . Repair Stations 3 | . . 1 . 1 . 1 . . . Recycling Units 5 | . 1 2 . 1 . 1 . . . Scanalyzers 3 | . . 2 1 . . . . . . Garrison Access 1 | . . . . 1 . . . . . Total Hacks 79 | . 16 31 2 7 5 17 . 1 . Successful 45 | . 6 19 2 6 1 10 . 1 . Failed 32 | . 9 11 . 1 4 7 . . . Catastrophic 7 | . 2 1 . . 2 2 . . . Database Lockouts 2 | . 1 1 . . . . . . . Manual 33 | . 8 14 . . . 11 . . . Terminals 47 | . 11 13 . 3 5 14 . 1 . Fabricators . | . . . . . . . . . . Repair Stations 5 | . . 2 . 2 . 1 . . . Recycling Units 15 | . 5 7 . 1 . 2 . . . Scanalyzers 11 | . . 9 2 . . . . . . Garrison Access 1 | . . . . 1 . . . . . Terminal Hacks 15 | . 2 4 . 2 1 5 . 1 . Part Schematic 4 | . 1 3 . . . . . . . Prototype ID Bank 2 | . 1 1 . . . . . . . Open Door 1 | . . . . 1 . . . . . Open DSF 1 | . . . . . . . . 1 . Branch Access Points 1 | . . . . . . 1 . . . Emergency Access Points 1 | . . . . . 1 . . . . Terminal Index 1 | . . . . . . 1 . . . Unreport Threat 2 | . . . . . . 2 . . . Zone Layout 2 | . . . . 1 . 1 . . . Fabricator Hacks . | . . . . . . . . . . Repair Station Hacks 5 | . . 2 . 2 . 1 . . . Scan Component 2 | . . 1 . 1 . . . . . Repair 2 | . . 1 . 1 . . . . . Refit 1 | . . . . . . 1 . . . Recycling Unit Hacks 6 | . 2 1 . 1 . 2 . . . Recycle Component 1 | . 1 . . . . . . . . Process 2 | . 1 . . . . 1 . . . Report Inventory 1 | . . . . 1 . . . . . Retrieve Matter 1 | . . . . . . 1 . . . Retrieve Components 1 | . . 1 . . . . . . . Scanalyzer 10 | . . 8 2 . . . . . . Insert Component 4 | . . 4 . . . . . . . Analyze 3 | . . 3 . . . . . . . Retrieve Study 3 | . . 1 2 . . . . . . Garrison Access Hacks 1 | . . . . 1 . . . . . Unlock Access 1 | . . . . 1 . . . . . Unauthorized Hacks 8 | . 2 4 . . . 2 . . . Terminals 7 | . 2 3 . . . 2 . . . Botnet 5 | . 1 2 . . . 2 . . . Operators 2 | . 1 1 . . . . . . . Fabricators . | . . . . . . . . . . Repair Stations . | . . . . . . . . . . Recycling Units . | . . . . . . . . . . Scanalyzers 1 | . . 1 . . . . . . . Extract 1 | . . 1 . . . . . . . Garrison Access . | . . . . . . . . . . Data Cores Recovered . | . . . . . . . . . . Used . | . . . . . . . . . . Hacking Detections 28 | . 5 9 1 3 3 7 . . . Full Trace Events 2 | . 1 1 . . . . . . . Feedback Events 1 | . 1 . . . . . . . . Corruption 1 | . 1 . . . . . . . . Feedback Blocked . | . . . . . . . . . . Robot Schematics Acquired . | . . . . . . . . . . Robots Built . | . . . . . . . . . . Authchips . | . . . . . . . . . . Time . | . . . . . . . . . . Total Robot Build Rating . | . . . . . . . . . . Part Schematics Acquired 13 | . 1 12 . . . . . . . Parts Built . | . . . . . . . . . . Authchips . | . . . . . . . . . . Time . | . . . . . . . . . . Total Part Build Rating . | . . . . . . . . . . Part Studies Acquired 3 | . . 1 2 . . . . . . Parts Repaired 2 | . . 1 . 1 . . . . . Time 70 | . . 26 . 44 . . . . . Parts Recycled 1 | . 1 . . . . . . . . Recycled Matter 836 | . 720 . . . . 116 . . . Retrieved Matter 116 | . . . . . . 116 . . . Retrieved Components 10 | . . 10 . . . . . . . Parts Scanalyzed 3 | . . 3 . . . . . . . Part Schematics Acquired 3 | . . 3 . . . . . . . Parts Damaged 1 | . . 1 . . . . . . . Bothacking | -11 -10 -9 -8 -8 -8 -7 -7 -7 -7 ------------ Run | Yrd Mat Mat Mat Sto Gar Fac Was Fac DSF Used RIF Installer . | . . . . . . . . . . Robots Hacked . | . . . . . . . . . . Non-combat . | . . . . . . . . . . Combat . | . . . . . . . . . . Robot Hacks Applied . | . . . . . . . . . . Relay Couplers Released 6 | . . . . . 6 . . . . Machine Destruction 6 | . . . . . 6 . . . . Fabnet Peak Effective % . | . . . . . . . . . . Robots Rewired 3 | . . . . . 3 . . . . Allies Hacked . | . . . . . . . . . . Hacks Repelled . | . . . . . . . . . . Allies | -11 -10 -9 -8 -8 -8 -7 -7 -7 -7 -------- Run | Yrd Mat Mat Mat Sto Gar Fac Was Fac DSF Total Allies 3 | . . . . . 3 . . . . Largest Group 3 | . . . . . 3 3 . . . Highest-Rated Group 15 | . . . . . 15 15 . . . Highest-Rated Ally 5 | . . . . . 5 5 . . . Initial Warlord ECA Mod 6 | . . . . . . 6 6 6 6 Total Orders . | . . . . . . . . . . Ally Attacks 10 | . . . . . . 10 . . . Total Damage 58 | . . . . . . 58 . . . Kills 1 | . . . . . . 1 . . . Allies Corrupted . | . . . . . . . . . . Allies Melted . | . . . . . . . . . . Intel | -11 -10 -9 -8 -8 -8 -7 -7 -7 -7 ------- Run | Yrd Mat Mat Mat Sto Gar Fac Was Fac DSF Active Infowar (turns) 3006 | 116 1690 138 . . 424 598 40 . . Optics 1062 | . . . . . 424 598 40 . . Structural 212 | . 74 138 . . . . . . . Seismic 2062 | 116 1616 . . . . 321 9 . . Robot Analysis Total . | . . . . . . . . . . Derelict Logs Recovered . | . . . . . . . . . . Drone Launches . | . . . . . . . . . . Drone Recoveries . | . . . . . . . . . . Exploration | -11 -10 -9 -8 -8 -8 -7 -7 -7 -7 ------------- Run | Yrd Mat Mat Mat Sto Gar Fac Was Fac DSF Turns Passed 8496 | 345 1739 2615 640 677 1733 598 51 4 94 Spaces Moved 4261 | 133 630 1288 227 196 681 900 123 7 76 Core 107 | 5 . . . . . . 19 7 76 Treads 2516 | 128 557 1125 227 196 283 . . . . Legs 22 | . 22 . . . . . . . . Wheels 447 | . 51 163 . . 84 149 . . . Hover 314 | . . . . . 314 . . . . Flight 855 | . . . . . . 751 104 . . Fastest Speed 27 | 50 120 135 160 160 130 27 27 50 50 Average Speed 146 | 155 213 157 224 198 186 42 31 50 50 Slowest Speed 470 | 160 240 160 240 240 470 367 50 50 50 Overloaded Moves . | . . . . . . . . . . Propulsion Burnouts . | . . . . . . . . . . Robots Hopped 14 | . . . . . . 14 . . . Potential Cave-ins . | . . . . . . . . . . Cave-ins Triggered . | . . . . . . . . . . Exploration Rate (%) 52 | 5 67 96 20 49 84 31 79 . 40 Regions Visited 9 Branch Regions 1 Pre-discovered Areas . | . . . . . . . . . . Known Exits Taken 2 | . . . . 1 . . . 1 . Unknown Exits Taken 4 | 1 1 1 1 . . . . . . Scrap Searched . | . . . . . . . . . . Spaces Dug 3 | . . . . 3 . . . . . Terrain Destroyed 143 | . . . 8 16 57 62 . . . Melee . | . . . . . . . . . . Projectile 34 | . . . 8 16 3 7 . . . AOE 109 | . . . . . 54 55 . . . Terrain Rammed . | . . . . . . . . . . Walls Destroyed . | . . . . . . . . . . Machines Disabled . | . . . . . . . . . . Actions | -11 -10 -9 -8 -8 -8 -7 -7 -7 -7 --------- Run | Yrd Mat Mat Mat Sto Gar Fac Was Fac DSF Total 5516 | 212 820 1596 294 373 900 1042 136 6 137 Wait 312 | 35 11 82 4 95 36 38 6 . 5 Move 4224 | 132 629 1287 226 196 678 872 122 6 76 Hop 14 | . . . . . . 14 . . . Pick Up 114 | 10 27 27 8 6 10 10 3 . 13 Fast Attach 68 | 5 14 12 5 5 14 9 1 . 3 Attach 34 | 2 8 5 1 1 8 9 . . . Detach 4 | . . 1 . . . 3 . . . Swap 28 | . 2 9 2 8 1 6 . . . Drop 145 | . 20 40 17 11 15 24 4 . 14 Fire 503 | 28 108 133 31 51 109 42 . . 1 Melee . | . . . . . . . . . . Ram 7 | . . . . . . . . . 7 Kick . | . . . . . . . . . . Crush 1 | . 1 . . . . . . . . Escape Stasis 29 | . . . . . 6 15 . . 8 Rewire 23 | . . . . . 23 . . . . Trap 10 | . . . . . . . . . 10 Miscellaneous . | . . . . . . . . . . Route ------- -11/Scrapyard -10/Materials (discovered 2 exits: *Mat / [*Min]) -9/Materials (discovered 4 exits: *Mat x3 / [*Min]) -8/Materials -8/Storage -8/Garrison (discovered 3 exits: *Fac x3) -7/Factory (discovered 2 exits: Low x2) -7/Waste -7/Factory -7/DSF History --------- Turn | Location | Event 3 | -11/Scrapyard | Discovered new exit (range 16) 346 | -11/Scrapyard | Entered Materials 347 | -10/Materials | Build established: Mutant 527 | -10/Materials | Lost 3 parts (1p1n1w) 676 | -10/Materials | Discovered new exit (range 10) 892 | -10/Materials | Build established: Scavenger-Mutant 1187 | -10/Materials | Central database locked down 1787 | -10/Materials | Discovered new exit (range 10) 1920 | -10/Materials | Core integrity fell below 50% 1974 | -10/Materials | Core integrity fell below 20% 2016 | -10/Materials | Lost 6 parts (1p2n1u2w) 2085 | -10/Materials | Entered another Materials area 2085 | -9/Materials | Evolved 2 slots: Propulsion x1, Weapon x1 2312 | -9/Materials | Central database locked down 2550 | -9/Materials | Repaired Lgt. Treads 2720 | -9/Materials | Build established: Scavenger-Gunner 3028 | -9/Materials | Discovered new exit (range 4) 3441 | -9/Materials | Discovered new exit (range 16) 3914 | -9/Materials | Discovered new exit (range 9) 4651 | -9/Materials | Discovered new exit (range 16) 4700 | -9/Materials | Entered another Materials area 4700 | -8/Materials | Evolved 2 slots: Utility x2 4879 | -8/Materials | Discovered new exit (range 15) 5057 | -8/Materials | Build established: Tank 5340 | -8/Materials | Entered Storage 5649 | -8/Storage | Repaired Plasma Cannon+ 6017 | -8/Storage | Identified exit to Garrison 6017 | -8/Storage | Entered Garrison 6075 | -8/Garrison | Triggered checkpoint 6101 | -8/Garrison | Garrison Relay disabled 6225 | -8/Garrison | Triggered checkpoint 6375 | -8/Garrison | Triggered checkpoint 6463 | -8/Garrison | Phase Generator disabled 6463 | -8/Garrison | Discovered new exit (range 7) 6875 | -8/Garrison | Attempted to access garrison exit controls, blocked by remote lockdown 6985 | -8/Garrison | Triggered checkpoint 6992 | -8/Garrison | Triggered checkpoint 7141 | -8/Garrison | Build established: Scavenger-Tank 7182 | -8/Garrison | Triggered checkpoint 7240 | -8/Garrison | Garrison Relay disabled 7387 | -8/Garrison | Discovered new exit (range 21) 7429 | -8/Garrison | Attempted to access garrison exit controls, blocked by remote lockdown 7493 | -8/Garrison | Triggered checkpoint 7653 | -8/Garrison | Discovered new exit (range 12) 7657 | -8/Garrison | Triggered checkpoint 7750 | -8/Garrison | Entered Factory 7750 | -7/Factory | Accompanied by 3 allies 7750 | -7/Factory | Evolved 2 slots: Propulsion x1, Utility x1 7948 | -7/Factory | Lost 3 allies 7954 | -7/Factory | Garrison activated, responded to threat 8160 | -7/Factory | Identified exit to Lower Caves 8348 | -7/Factory | Sucked down chute 8348 | -7/Factory | Entered Waste 8350 | -7/Waste | Spotted C-40 Crusher 8360 | -7/Waste | Spotted C-40 Crusher 8366 | -7/Waste | Spotted C-40 Crusher 8368 | -7/Waste | Spotted C-40 Crusher 8372 | -7/Waste | Spotted C-40 Crusher 8380 | -7/Waste | Spotted C-40 Crusher 8380 | -7/Waste | Crushed by Compactor (1 part destroyed, 2 dropped) 8385 | -7/Waste | Crushed by Compactor (1 part destroyed, 2 dropped) 8388 | -7/Waste | Crushed by Compactor (1 part destroyed, 1 dropped) 8391 | -7/Waste | Discovered new exit (range 11) 8399 | -7/Waste | Identified exit to Factory 8399 | -7/Waste | Entered Factory 8403 | -7/Factory | Identified exit to DSF 8403 | -7/Factory | Entered DSF 8419 | -7/DSF | Lost 3 parts (3n) 8428 | -7/DSF | Additional patrols routed to DSF 8482 | -7/DSF | Core integrity fell below 50% 8491 | -7/DSF | Core integrity fell below 20% 8497 | -7/DSF | Destroyed by C-17 Slicer with Blade Saw Last Messages --------------- 08480_ Field strength at 60. 08480_ Imp. Signal Interpreter severed. 08481_ Field strength at 45. 08482_ Field strength at 34. 08483_ Field strength at 28. 08484_ Field strength at 13. 08485_ Field strength at 1. 08486_ Stasis field depleted. 08486_ Slammed into C-17 Slicer. 08487_ Acquired Concussive RPG. 08488_ Concussive RPG expended. 08488_ C-17 Slicer knocked back. 08488_ Knocked back. 08488_ C-17 Slicer knocked back. 08489_ Slug penetrates Wall. 08490_ Acquired Concussive RPG. 08490_ Concussive RPG severed. 08491_ Slammed into C-17 Slicer. 08496_ Acquired Concussive RPG. 08496_ Concussive RPG severed. Map ----- +----------------------------------------------------+ | ???????????????????????????????????????????????? | | ???????????????????????????????????????????????? | | ???????????????????????????????????????????????? | | ???????????????????????????????????????????????? | | ???????????????????????????????????????????????? | | ????######??###???#????????????????????????????? | | ????# #?]]]#?!!#????????????????????????????? | | ????# ##]]]#!!??????????????????????????????? | | ????# ????????????????????????????????? | | ????# ??????????????????????????????????? | | ????# ?????????? H ??????????????????????? | | ????#]] ^#?????????? ??????????????????????? | | ????#]]^^#??????????# #??????????????????????? | | ????### ^###???????## ###????????????????????? | | ?????#& ^ #???????!! !!?????????????????????? | | ?????#& #????????! !!?????????????????????? | | ?????#& ^ #????????! !??????????????????????? | | ?????## ###??????### ;##????????????????????? | | ?????#& * #??????# #????????????????????? | | ?????#& / #??????# #????????????????????? | | ?????##& ########## ?????????????????????? | | ????### ### #&&&#?# ;#?????????????????????? | | ??###"" [%## # ### ;##????????????????????? | | ?#""""" ^ % #????????????????????? | | ?#"##"" cc #????????????????????? | | ????#"""""## # # cc@#????????????????????? | | ????#"""""######### %]] c #????????????????????? | | ????####"##???????#########????????????????????? | | ???????#"#?????????????????????????????????????? | | ???????""#?????????????????????????????????????? | | ???????????????????????????????????????????????? | | ???????????????????????????????????????????????? | | ???????????????????????????????????????????????? | | ???????????????????????????????????????????????? | | ???????????????????????????????????????????????? | | | | | | | | | | | | | | | | | | | | | | | | | | | | | | | +----------------------------------------------------+ Best States ------------- Heat Dissipation 56 Energy Generation 15 Energy Capacity 280 Matter Stores 300 Matter Capacity 300 Sight Range 22 Terrain Scan Density 10 Armor Coverage 600 Evasion (%) 64 Recoil Reduction 3 Particle Charging 15 Offensive Hacking 10 Authchip Count 5 Item Schematics ----------------- Hcp. Storage Unit | -10/Materials | Hacked Plasma Cutter | -9/Materials | Hacked Lrg. Storage Unit | -9/Materials | Hacked Med. Storage Unit | -9/Materials | Hacked Imp. Flight Unit | -9/Materials | Scanalyzed Med. Armor Plating | -9/Materials | Scanalyzed Grenade Launcher | -9/Materials | Extracted EM Shotgun | -9/Materials | Extracted Lgt. Assault Rifle | -9/Materials | Extracted Imp. Medium Laser | -9/Materials | Extracted Hrd. Light Armor Plating | -9/Materials | Extracted Weight Redist. System | -9/Materials | Extracted Mni. Grenade Launcher | -9/Materials | Scanalyzed Robot Schematics ------------------ None Fabricated ------------ Nothing Repaired ---------- Lgt. Treads | 16% | -9/Materials Plasma Cannon | 50% | -8/Storage Studied --------- Com. Wheel | -9/Materials | Hacked Plasma Cannon | -8/Materials | Hacked Lgt. Treads | -8/Materials | Hacked Alien Tech Used ----------------- None Achievements -------------- None Challenges ------------ None Game ------ Seed ServoSixInterrupter Manual? 0 Play Time 01:17:03 Cumulative 444.2 hours Start 2026.09.05 @ 02:50:32 End 2026.09.05 @ 04:07:25 Sessions 1 Manual Loads 0 Difficulty Rogue Special Mode None Game No. 220 Rogue 220 Adventurer 0 Explorer 0 Win Type - Total 14 Types 7/1/1/1/1/0/1/1/0/1 Lore% 71 Gallery% 74 Achievement% 67 Wizard Run 0 Options --------- Layout 1 ASCII 0 Keyboard 0 Movement Mouse Keybinds 0 Fullscreen 1 Font 18/SmallcapsGlow Map View 54x44 Zoom Use 0% Tactical HUD 1 Map Filters NONE Filters NONE Steam 0 RUN: 37191614-30cd-4066-872d-ee8bab7ff1da